Cogmind - Beta 12 @@@ ROGUE MODE // 2023.03.24 @ 00:51:10 Player: kawyua Result: Destroyed by S-10 Pest with Light Assault Rifle Performance ------------- Evolutions (0) 0 Regions Visited (2) 400 Robots Destroyed (29) 145 Value Destroyed (559) 559 Prototype IDs (0) 0 Alien Tech Used (0) 0 Bonus (0) 0 TOTAL SCORE: 1104 Bonus ------- None Cogmind --------- Core Integrity 0/250 Matter 260/300 Energy 125/125 System Corruption 0% Temperature Cool (50) Movement Rolling (105) Ox1 Location -10/Mines Parts ------- > --- POWER (1) -------- Light Ion Engine > --- PROPULSION (2) --- Armored Wheel Armored Wheel > --- UTILITY (2) ------ Large Storage Unit Signal Interpreter > --- WEAPON (2) ------- Improved Light Cannon Improved Light Cannon > --- INVENTORY (15) --- Ion Engine Armored Wheel Armored Wheel Flight Unit Flight Unit Terrain Scan Processor Hacking Suite Small Laser Light Assault Rifle Improved Light Cannon Improved Light Cannon Rocket Launcher Datajack Plasma Cutter Peak State ------------ > --- POWER ------------ Light Ion Engine > --- PROPULSION ------- Armored Wheel Armored Wheel > --- UTILITY ---------- Large Storage Unit Targeting Computer > --- WEAPON ----------- Plasma Cutter Plasma Cutter > --- INVENTORY -------- Ion Engine Light Treads Armored Wheel Armored Wheel Flight Unit Flight Unit Signal Interpreter Terrain Scan Processor Small Laser Light Assault Rifle Improved Light Cannon Improved Light Cannon Improved Light Cannon Improved Light Cannon Datajack [Rating: 13] Favorites ----------- Power Ion Engine Engine Ion Engine Propulsion Light Treads Treads Light Treads Leg Aluminum Leg Wheel Armored Wheel Utility Large Storage Unit Device Seismic Detector Storage Large Storage Unit Processor Signal Interpreter Weapon Small Laser Energy Gun Small Laser Ballistic Gun Assault Rifle Ballistic Cannon Improved Light Cannon Special Weapon Plasma Cutter Build | -11 -10 -10 ------- Run | Jun Mat Min Slots Evolved . | . . . Power . | . . . Propulsion . | . . . Utility . | . . . Weapon . | . . . Parts Attached 33 | 6 25 2 Power 4 | 1 3 . Engine 4 | 1 3 . Core . | . . . Reactor . | . . . Propulsion 10 | 2 8 . Treads 4 | 2 2 . Leg 4 | . 4 . Wheel 2 | . 2 . Hover . | . . . Flight . | . . . Utility 6 | 1 4 1 Device 2 | . 2 . Storage 2 | 1 1 . Processor 2 | . 1 1 Hackware . | . . . Protection . | . . . Artifact . | . . . Weapon 13 | 2 10 1 Energy Gun 7 | 2 5 . Energy Cannon . | . . . Ballistic Gun 1 | . 1 . Ballistic Cannon 3 | . 2 1 Launcher . | . . . Special Weapon 2 | . 2 . Impact Weapon . | . . . Slashing Weapon . | . . . Piercing Weapon . | . . . Special Melee Weapon . | . . . Unidentified Prototypes . | . . . Parts Lost 4 | . 4 . Power . | . . . Propulsion 1 | . 1 . Utility . | . . . Weapon 3 | . 3 . Highest Loss Streak 2 | . 2 . To Critical Strikes 1 | . 1 . Average Slot Usage (%) 95 | . 93 100 Engine 13 | . 13 14 Treads 14 | . 19 . Wheel 10 | . 5 28 Device 7 | . 10 . Storage 14 | . 14 14 Processor 4 | . 1 14 Energy Gun 14 | . 17 4 Ballistic Gun 3 | . 4 . Ballistic Cannon 6 | . 1 23 Special Weapon 1 | . 2 . Naked Turns . | . . . Heaviest Build 31 | 14 30 31 Greatest Support 40 | 40 40 24 Greatest Overweight (x) 6 | 1 6 1 Average Overweight (x) . | . . 1 Largest Inventory Capacity 15 | 8 15 15 Average Capacity 14 | 6 14 15 Most Carried 15 | 6 15 14 Average Carried 10 | 2 10 13 Final Capacity 15 | 8 15 15 Final Carried 14 | 6 14 14 Class Distribution -------------------- 100% | Mutant Dominant Class ---------------- Mutant | -10/Materials Mutant | -10/Mines Resources | -11 -10 -10 ----------- Run | Jun Mat Min Matter Collected 723 | 250 393 80 Remotely . | . . . Salvage Created 815 | . 748 67 Parts 62 | . 58 4 Haulers Intercepted . | . . . Recyclers Shooed . | . . . Parts Field Recycled . | . . . Retrieved Matter . | . . . Parts Self-Destructed . | . . . Prevented . | . . . Kills | -11 -10 -10 ------- Run | Jun Mat Min Combat Hostiles Destroyed 20 | . 15 5 Guns 14 | . 14 . Cannons 5 | . . 5 AOE 1 | . 1 . Classes Destroyed 8 | . 7 1 Worker 3 | . 3 . Builder 2 | . 2 . Recycler 1 | . 1 . Operator 3 | . 3 . Watcher 1 | . 1 . Swarmer 9 | . 6 3 Grunt 10 | . 9 1 Assembled 1 | . . 1 Best Kill Streak 5 | . 5 2 Combat Bots Only 3 | . 3 2 Max Kills in Single Turn 2 | . 2 1 Gunslinging . | . . . Exploded 1 | . 1 . Melee . | . . . Uniques/NPCs Destroyed . | . . . Combat | -11 -10 -10 -------- Run | Jun Mat Min Damage Taken 1035 | . 656 379 Core 258 | . 130 128 Absorbed by Shields . | . . . Core Remaining (%) 100 | 100 . . Volleys Fired 91 | . 75 16 Largest 2 | . 2 2 Hottest 80 | . 80 79 Shots Fired 173 | . 141 32 Gun 135 | . 128 7 Cannon 28 | . 3 25 Launcher . | . . . Special 10 | . 10 . Kinetic 75 | . 50 25 Thermal 72 | . 65 7 Explosive . | . . . Electromagnetic 26 | . 26 . Robot Hit Streak 8 | . 8 5 Robot Miss Streak 5 | . 5 4 Penetration Max . | . . . Secondary Targets 1 | . 1 . Max Gunslinging Chain 1 | . 1 . Shots Hit Robots 88 | . 75 13 Core Hits 47 | . 40 7 Critical Kills . | . . . Critical Parts Destroyed . | . . . Critical Strikes . | . . . Melee Attacks . | . . . Impact . | . . . Slashing . | . . . Piercing . | . . . Sneak Attacks . | . . . Combat Hostiles . | . . . Follow-up Attacks . | . . . Damage Inflicted 1355 | . 1118 237 Guns 1013 | . 968 45 Cannons 211 | . 19 192 Explosions 97 | . 97 . Melee . | . . . Ramming . | . . . Kinetic 582 | . 390 192 Thermal 522 | . 477 45 Explosive . | . . . Electromagnetic 251 | . 251 . Impact . | . . . Slashing . | . . . Piercing . | . . . Highest Corruption . | . . . Average Corruption . | . . . Corruption Purged . | . . . Corruption Blocked . | . . . Overload Shots . | . . . Overflow Damage 10 | . 10 . Projectiles . | . . . Explosions 10 | . 10 . Melee . | . . . Knockbacks 3 | . . 3 Impact . | . . . Kinetic 3 | . . 3 Secondary . | . . . Self-Inflicted Damage 55 | . 55 . Shots 2 | . 2 . Rammed 1 | . 1 . Targets Rammed 1 | . 1 . Kicked . | . . . Crushed . | . . . Highest Temperature 120 | . 120 116 Average Temperature 38 | . 42 31 Received Heat Transfer 359 | . 237 122 Siege Activations . | . . . Robots Corrupted . | . . . Combat Hostiles . | . . . Parts Fried 1 | . 1 . Impact Corruptions . | . . . Robots Melted . | . . . Combat Hostiles . | . . . Parts Melted 1 | . 1 . Heat Transferred 1236 | . 1136 100 Parts Sabotaged . | . . . Parts Stolen . | . . . Parts Stripped . | . . . Power Chain Reactions 2 | . 2 . Missiles Intercepted . | . . . Alert | -11 -10 -10 ------- Run | Jun Mat Min Peak Influence 224 | . 224 142 Initial . | . . . Average 59 | . 63 53 Maximum Alert Level 1 | . 1 . Low Security (%) 97 | 100 96 100 Level 1 2 | . 3 . Level 2 . | . . . Level 3 . | . . . Level 4 . | . . . Level 5 . | . . . High Security . | . . . Max Security . | . . . Squads Dispatched 4 | . 4 . Investigation 2 | . 2 . Extermination . | . . . Reinforcement 2 | . 2 . Assault . | . . . Garrison . | . . . Intercept . | . . . Searches Triggered . | . . . Construction Impeded . | . . . Haulers Reinforced . | . . . Active Scanning Responses . | . . . Cargo Convoy Interrupts . | . . . Stealth | -11 -10 -10 --------- Run | Jun Mat Min Distress Signals 1 | . . 1 Communications Jammed . | . . . Distress Signals . | . . . Times Spotted 71 | . 52 19 Peak Tracking Total 6 | . 6 6 Tactical Retreats 7 | . 3 4 Traps | -11 -10 -10 ------- Run | Jun Mat Min Traps Triggered 7 | . 7 . Indirectly . | . . . Trap Hack Attempts . | . . . Triggered . | . . . Disarmed . | . . . Reprogrammed . | . . . Reused . | . . . Traps Extracted . | . . . Installed . | . . . Triggered . | . . . Machines | -11 -10 -10 ---------- Run | Jun Mat Min Machines Disabled 2 | . . 2 Max in Single Turn 1 | . . 1 Machines Repaired . | . . . Machines Sabotaged . | . . . Overloaded Fab Kills . | . . . Hacking | -11 -10 -10 --------- Run | Jun Mat Min Machines Accessed 5 | . 5 . Terminals 5 | . 5 . Fabricators . | . . . Repair Stations . | . . . Recycling Units . | . . . Scanalyzers . | . . . Garrison Access . | . . . Total Hacks 13 | . 13 . Successful 5 | . 5 . Failed 8 | . 8 . Catastrophic 2 | . 2 . Database Lockouts . | . . . Manual 3 | . 3 . Terminals 13 | . 13 . Fabricators . | . . . Repair Stations . | . . . Recycling Units . | . . . Scanalyzers . | . . . Garrison Access . | . . . Terminal Hacks 4 | . 4 . Alert Level 2 | . 2 . Locate Traps 1 | . 1 . Hauler Manifests 1 | . 1 . Fabricator Hacks . | . . . Repair Station Hacks . | . . . Recycling Unit Hacks . | . . . Scanalyzer . | . . . Garrison Access Hacks . | . . . Unauthorized Hacks 1 | . 1 . Terminals 1 | . 1 . Botnet 1 | . 1 . Fabricators . | . . . Repair Stations . | . . . Recycling Units . | . . . Scanalyzers . | . . . Garrison Access . | . . . Data Cores Recovered 1 | . 1 . Used . | . . . Hacking Detections 4 | . 4 . Full Trace Events . | . . . Feedback Events . | . . . Feedback Blocked . | . . . Robot Schematics Acquired . | . . . Robots Built . | . . . Authchips . | . . . Time . | . . . Total Robot Build Rating . | . . . Part Schematics Acquired . | . . . Parts Built . | . . . Authchips . | . . . Time . | . . . Total Part Build Rating . | . . . Parts Repaired . | . . . Time . | . . . Parts Recycled . | . . . Recycled Matter . | . . . Retrieved Matter . | . . . Retrieved Components . | . . . Parts Scanalyzed . | . . . Part Schematics Acquired . | . . . Parts Damaged . | . . . Bothacking | -11 -10 -10 ------------ Run | Jun Mat Min Used RIF Installer . | . . . Robots Hacked . | . . . Non-combat . | . . . Combat . | . . . Robot Hacks Applied . | . . . Relay Couplers Released . | . . . Fabnet Peak Effective % . | . . . Robots Rewired . | . . . Allies Hacked . | . . . Hacks Repelled . | . . . Allies | -11 -10 -10 -------- Run | Jun Mat Min Total Allies 1 | . . 1 Largest Group 1 | . . 1 Highest-Rated Group 31 | . . 31 Highest-Rated Ally 31 | . . 31 Total Orders . | . . . Ally Attacks 11 | . . 11 Total Damage 149 | . . 149 Kills 4 | . . 4 Allies Corrupted . | . . . Allies Melted . | . . . Intel | -11 -10 -10 ------- Run | Jun Mat Min Robot Analysis Total . | . . . Derelict Logs Recovered 1 | . . 1 Drone Launches . | . . . Drone Recoveries . | . . . Exploration | -11 -10 -10 ------------- Run | Jun Mat Min Turns Passed 2870 | 79 2155 636 Spaces Moved 1601 | 44 1056 501 Core 12 | 11 1 . Treads 710 | 33 677 . Legs 44 | . 44 . Wheels 835 | . 334 501 Hover . | . . . Flight . | . . . Fastest Speed 50 | 50 90 105 Average Speed 137 | 141 153 105 Slowest Speed 350 | 160 350 105 Overloaded Moves . | . . . Propulsion Burnouts . | . . . Robots Hopped . | . . . Cave-ins Triggered . | . . . Exploration Rate (%) 57 | 4 94 75 Regions Visited 2 Branch Regions 1 Pre-discovered Areas 1 | . . 1 Known Exits Taken . | . . . Unknown Exits Taken 2 | 1 1 . Scrap Searched 1 | . . 1 Spaces Dug . | . . . Terrain Destroyed 14 | . 11 3 Melee . | . . . Projectile 4 | . 1 3 AOE 10 | . 10 . Terrain Rammed . | . . . Walls Destroyed . | . . . Machines Disabled . | . . . Actions | -11 -10 -10 --------- Run | Jun Mat Min Total 2077 | 61 1438 578 Wait 307 | . 249 58 Move 1599 | 43 1055 501 Hop . | . . . Pick Up 37 | 12 24 1 Fast Attach 11 | . 11 . Attach 15 | 6 9 . Detach . | . . . Swap 7 | . 5 2 Drop 9 | . 9 . Fire 91 | . 75 16 Melee . | . . . Ram . | . . . Kick . | . . . Crush 1 | . 1 . Escape Stasis . | . . . Rewire . | . . . Trap . | . . . Miscellaneous . | . . . Route ------- -11/Junkyard -10/Materials (discovered 5 exits: *Mat x3 / [*Min x2]) -10/Mines (discovered 2 exits: *Mat x2) History --------- Turn | Location | Event 10 | -11/Junkyard | Discovered new exit (range 15) 80 | -11/Junkyard | Entered Materials 316 | -10/Materials | Build established: Mutant 714 | -10/Materials | Discovered new exit (range 15) 908 | -10/Materials | Discovered new exit (range 11) 1377 | -10/Materials | Discovered new exit (range 12) 1772 | -10/Materials | Discovered new exit (range 3) 2030 | -10/Materials | Core integrity fell below 50% 2055 | -10/Materials | Discovered new exit (range 16) 2235 | -10/Materials | Entered Mines 2250 | -10/Mines | Escorted by a lone wolf Derelict 2255 | -10/Mines | Discovered new exit (range 11) 2266 | -10/Mines | Assembled infested the area 2268 | -10/Mines | Identified exit to Materials 2270 | -10/Mines | Learned location of Storage (-7) 2436 | -10/Mines | Core integrity fell below 20% 2492 | -10/Mines | Received a Rocket Launcher from a helpful Derelict 2547 | -10/Mines | Discovered exit to Materials (range 5) 2871 | -10/Mines | Destroyed by S-10 Pest with Light Assault Rifle Last Messages --------------- were you, so I'm going to lend you mine." 02492_ 8O-0T9(g) slips back into the shadows. 02498_ K-01 Serf collects debris. 02504_ Acquired Rocket Launcher. 02507_ K-01 Serf collects debris. 02540_ Acquired derelict log, extracted data. Data stored: Mines entrances (x2). 02547_ EXIT=FOUND: MATERIALS 02678_ G-47 Trooper knocked back. 02681_ G-47 Trooper destroyed. 02715_ Acquired 6 matter. 02716_ Acquired 1 matter. 02725_ Acquired 9 matter. 02774_ Pulverizer disabled. 02781_ K-01 Serf collects debris. 02781_ Pulverizer disabled. 02786_ K-01 Serf collects debris. 02825_ Acquired 16 matter. 02854_ S-10 Pest knocked back. 02864_ S-10 Pest destroyed. Map ----- +----------------------------------------------------+ | | | | | | | ??????????????????????????????????????? | | ??????????????????????????????????????? | | ###???????????????????????????????????? | | ##??????????????????????????????????? | | #??????????????????????????????????? | | #??????????????????????????????????? | | #??????????????????????????????????? | | #??????????????????????????????????? | | #??????????????????????????????????? | | #??????????????????????????????????? | | #????????????????????########?#????? | | #????????????????????# ? #????? | | # ##????????????????????# #????? | | ????????????????????????# #????? | | ????????????????????????# """ #????? | | ????????????????????????# """ #????? | | ????????????????????????# """ #????? | | ????????????????????????# #????? | | ????????????????????????# s% #????? | | ????????????????????????##=%#####?????? | | ?????????? ?????????#%#??????????? | | ???????????? %**####s#??????????? | | ???????????????????#! @ #??????????? | | ???????????????????# #### #??????????? | | ???????????????????# ???## ########???? | | ???????????????????# ### #???? | | ???????????????????# """" #???? | | ???????????????????# """" #???? | | ???????????????????###### " "" #???? | | ????????????????????????# % %% #???? | | ????????????????????????# %% #???? | | ????????????????????????# #???? | | ????????????????????????##### #####???? | | ????????????????????????????# #???????? | | ????????????????????????????# ######??? | | ????????????????????????????# #??? | | ????????????????????????????###### #??? | | ?????????????????????????????????# #??? | | ?????????????????????????????????# #??? | | ?????????????????????????????????#%#??? | | ????????????????????????????????## #??? | | ???????????????????????????????## #??? | | ??????????????????????????????## #??? | | ??????????????????????????????# #??? | | ?????????????????????????????## <%##??? | | ?????????????????????????##### #???? | | ?????????????????????????# ##???? | +----------------------------------------------------+ Best States ------------- Heat Dissipation 25 Energy Generation 10 Energy Capacity 250 Matter Stores 300 Matter Capacity 300 Sight Range 16 Terrain Scan Density 10 Evasion (%) 40 Targeting Accuracy 5 Recoil Reduction 2 Item Schematics ----------------- None Robot Schematics ------------------ None Fabricated ------------ Nothing Alien Tech Used ----------------- None Achievements -------------- None Challenges ------------ None Game ------ Seed TrackerCorruptionRay Manual? 0 Play Time 00:22:16 Cumulative 92.0 hours Start 2023.03.24 @ 00:08:17 End 2023.03.24 @ 00:51:10 Sessions 1 Manual Loads 0 Difficulty Rogue Special Mode None Game No. 24 Rogue 24 Adventurer 0 Explorer 0 Win Type - Total 4 Types 4/0/0/0/0/0/0/0/0 Lore% 28 Gallery% 47 Achievement% 40 Wizard Run 0 Options --------- ASCII 0 Keyboard 0 Movement Mouse Keybinds 0 Fullscreen 2 Font 16/SmallcapsGlow Map View 75x55 Tactical HUD 1 Map Filters NONE Filters NONE Steam 1 RUN: 88b8fd63-4ca8-4b5c-8c27-3738c7c5ec90